[Event "Titled Tuesday Blitz April 05 Late 2022"]
[White "Czopor, Maciej"]
[Black "Andreikin, Dmitry"]
[WhiteFideId "21805431"]
[BlackFideId "4158814"]
[WhiteElo "1999"]
[BlackElo "2736"]
[Result "0-1"]
[Round "02"]
[TimeControl "180+1"]
[Date "2022.04.05"]
[WhiteClock "0:01:14"]
[BlackClock "0:02:16"]

1. d4 {[%clk 0:03:00]}  d5 {[%clk 0:02:58]} 2. Nf3 {[%clk 0:02:57]}  Nf6 {[%clk 0:02:58]} 3. Bf4 {[%clk 0:02:58]}  c5 {[%clk 0:02:57]} 4. e3 {[%clk 0:02:58]}  Nc6 {[%clk 0:02:57]} 5. Nbd2 {[%clk 0:02:54]}  Nh5 {[%clk 0:02:57]} 6. Bg5 {[%clk 0:02:53]}  h6 {[%clk 0:02:56]} 7. Bh4 {[%clk 0:02:53]}  g5 {[%clk 0:02:57]} 8. Bg3 {[%clk 0:02:53]}  Nxg3 {[%clk 0:02:54]} 9. hxg3 {[%clk 0:02:54]}  g4 {[%clk 0:02:53]} 10. Ne5 {[%clk 0:02:54]}  Nxe5 {[%clk 0:02:52]} 11. dxe5 {[%clk 0:02:55]}  Bg7 {[%clk 0:02:52]} 12. Rh5 {[%clk 0:02:41]}  Qc7 {[%clk 0:02:46]} 13. Bb5+ {[%clk 0:02:32]}  Kf8 {[%clk 0:02:46]} 14. f4 {[%clk 0:02:12]}  gxf3 {[%clk 0:02:45]} 15. Qxf3 {[%clk 0:02:06]}  Be6 {[%clk 0:02:45]} 16. Qf4 {[%clk 0:01:57]}  c4 {[%clk 0:02:41]} 17. c3 {[%clk 0:01:57]}  Qa5 {[%clk 0:02:36]} 18. a4 {[%clk 0:01:43]}  a6 {[%clk 0:02:36]} 19. Nf3 {[%clk 0:01:28]}  axb5 {[%clk 0:02:33]} 20. Nd4 {[%clk 0:01:29]}  Kg8 {[%clk 0:02:28]} 21. Nxb5 {[%clk 0:01:24]}  Qb6 {[%clk 0:02:20]} 22. Kd2 {[%clk 0:01:17]}  Bd7 {[%clk 0:02:16]} 23. Rf1 {[%clk 0:01:14]}  Qg6 {[%clk 0:02:16]} 0-1


[Site "https://www.chess.com"]

[Event "Titled Tuesday Blitz April 05 Late 2022"]
[White "Danilov, Vladimir"]
[Black "Sevian, Samuel"]
[WhiteFideId "1203398"]
[BlackFideId "2040506"]
[WhiteElo "2542"]
[BlackElo "3021"]
[Result "0-1"]
[Round "02"]
[TimeControl "180+1"]
[Date "2022.04.06"]
[WhiteClock "0:02:36"]
[BlackClock "0:02:53"]

1. b3 {[%clk 0:02:59]}  e5 {[%clk 0:03:00]} 2. Bb2 {[%clk 0:03:00]}  e4 {[%clk 0:02:59]} 3. e3 {[%clk 0:03:01]}  d5 {[%clk 0:02:57]} 4. d3 {[%clk 0:03:01]}  Nf6 {[%clk 0:02:56]} 5. Nc3 {[%clk 0:03:00]}  exd3 {[%clk 0:02:56]} 6. Bxd3 {[%clk 0:03:00]}  Bd6 {[%clk 0:02:57]} 7. Nf3 {[%clk 0:03:00]}  O-O {[%clk 0:02:58]} 8. Qd2 {[%clk 0:03:01]}  Bg4 {[%clk 0:02:58]} 9. O-O-O {[%clk 0:03:01]}  c6 {[%clk 0:02:58]} 10. h3 {[%clk 0:03:01]}  Bh5 {[%clk 0:02:58]} 11. g4 {[%clk 0:03:01]}  Bg6 {[%clk 0:02:58]} 12. Bxg6 {[%clk 0:03:01]}  hxg6 {[%clk 0:02:58]} 13. Qd3 {[%clk 0:02:53]}  Na6 {[%clk 0:02:57]} 14. g5 {[%clk 0:02:49]}  Nc5 {[%clk 0:02:57]} 15. Qe2 {[%clk 0:02:49]}  Nfe4 {[%clk 0:02:57]} 16. h4 {[%clk 0:02:48]}  Nxc3 {[%clk 0:02:55]} 17. Bxc3 {[%clk 0:02:48]}  Ne4 {[%clk 0:02:56]} 18. Bb2 {[%clk 0:02:48]}  Qa5 {[%clk 0:02:57]} 19. Kb1 {[%clk 0:02:48]}  Ba3 {[%clk 0:02:55]} 20. Qd3 {[%clk 0:02:45]}  Bxb2 {[%clk 0:02:54]} 21. Kxb2 {[%clk 0:02:45]}  Nxf2 {[%clk 0:02:55]} 22. Qe2 {[%clk 0:02:44]}  Nxd1+ {[%clk 0:02:55]} 23. Qxd1 {[%clk 0:02:44]}  Rae8 {[%clk 0:02:55]} 24. h5 {[%clk 0:02:40]}  Rxe3 {[%clk 0:02:55]} 25. Nd4 {[%clk 0:02:39]}  Qc3+ {[%clk 0:02:54]} 26. Kb1 {[%clk 0:02:39]}  Rfe8 {[%clk 0:02:55]} 27. Nf3 {[%clk 0:02:35]}  Rxf3 {[%clk 0:02:55]} 28. hxg6 {[%clk 0:02:36]}  fxg6 {[%clk 0:02:53]} 0-1


[Site "https://www.chess.com"]

[Event "Titled Tuesday Blitz April 05 Late 2022"]
[White "Dardha, Daniel"]
[Black "Rudzinska, Michalina"]
[WhiteFideId "240990"]
[BlackFideId "1172883"]
[WhiteElo "2719"]
[BlackElo "2285"]
[Result "0-1"]
[Round "02"]
[TimeControl "180+1"]
[Date "2022.04.06"]
[WhiteClock "0:00:11"]
[BlackClock "0:00:10"]

1. Na3 {[%clk 0:02:58]}  c5 {[%clk 0:02:57]} 2. e4 {[%clk 0:02:55]}  b6 {[%clk 0:02:53]} 3. g3 {[%clk 0:02:47]}  Bb7 {[%clk 0:02:51]} 4. Bg2 {[%clk 0:02:45]}  e6 {[%clk 0:02:47]} 5. Ne2 {[%clk 0:02:42]}  Nf6 {[%clk 0:02:44]} 6. d3 {[%clk 0:02:38]}  d6 {[%clk 0:02:43]} 7. O-O {[%clk 0:02:31]}  Be7 {[%clk 0:02:43]} 8. e5 {[%clk 0:02:30]}  Bxg2 {[%clk 0:02:28]} 9. exf6 {[%clk 0:02:28]}  Bxf1 {[%clk 0:02:28]} 10. fxe7 {[%clk 0:02:28]}  Qxe7 {[%clk 0:02:23]} 11. Qxf1 {[%clk 0:02:28]}  Nd7 {[%clk 0:02:22]} 12. Nc4 {[%clk 0:02:24]}  h5 {[%clk 0:02:18]} 13. h3 {[%clk 0:02:23]}  h4 {[%clk 0:02:17]} 14. g4 {[%clk 0:02:18]}  b5 {[%clk 0:02:15]} 15. Ne3 {[%clk 0:02:18]}  d5 {[%clk 0:02:12]} 16. c4 {[%clk 0:02:09]}  d4 {[%clk 0:02:11]} 17. Ng2 {[%clk 0:02:07]}  bxc4 {[%clk 0:02:06]} 18. dxc4 {[%clk 0:02:08]}  Ne5 {[%clk 0:02:06]} 19. Nef4 {[%clk 0:01:59]}  Nf3+ {[%clk 0:01:54]} 20. Kh1 {[%clk 0:01:58]}  Qb7 {[%clk 0:01:45]} 21. Nd3 {[%clk 0:01:51]}  Qc6 {[%clk 0:01:36]} 22. Qe2 {[%clk 0:01:44]}  O-O {[%clk 0:01:25]} 23. b3 {[%clk 0:01:34]}  e5 {[%clk 0:01:06]} 24. Ba3 {[%clk 0:01:33]}  e4 {[%clk 0:01:01]} 25. Nxc5 {[%clk 0:01:30]}  Qc7 {[%clk 0:00:57]} 26. Qxf3 {[%clk 0:01:15]}  exf3 {[%clk 0:00:56]} 27. Nxh4 {[%clk 0:01:15]}  Rfe8 {[%clk 0:00:50]} 28. Nxf3 {[%clk 0:01:12]}  Qf4 {[%clk 0:00:50]} 29. Kg2 {[%clk 0:01:11]}  Rad8 {[%clk 0:00:47]} 30. Nd3 {[%clk 0:01:10]}  Qc7 {[%clk 0:00:40]} 31. Rd1 {[%clk 0:01:11]}  Re2 {[%clk 0:00:40]} 32. Bc1 {[%clk 0:01:04]}  Rxa2 {[%clk 0:00:36]} 33. Bf4 {[%clk 0:01:04]}  Qb7 {[%clk 0:00:35]} 34. b4 {[%clk 0:00:58]}  Rc2 {[%clk 0:00:24]} 35. c5 {[%clk 0:00:56]}  Re8 {[%clk 0:00:21]} 36. Ne5 {[%clk 0:00:54]}  f6 {[%clk 0:00:16]} 37. c6 {[%clk 0:00:53]}  Qxb4 {[%clk 0:00:16]} 38. Nd3 {[%clk 0:00:51]}  Qc4 {[%clk 0:00:16]} 39. c7 {[%clk 0:00:49]}  Ree2 {[%clk 0:00:16]} 40. Bd6 {[%clk 0:00:43]}  a5 {[%clk 0:00:15]} 41. Nc5 {[%clk 0:00:38]}  Rxf2+ {[%clk 0:00:14]} 42. Kg3 {[%clk 0:00:31]}  Rg2+ {[%clk 0:00:13]} 43. Kh4 {[%clk 0:00:31]}  g5+ {[%clk 0:00:14]} 44. Nxg5 {[%clk 0:00:31]}  fxg5+ {[%clk 0:00:14]} 45. Kxg5 {[%clk 0:00:31]}  Qd5+ {[%clk 0:00:14]} 46. Kh4 {[%clk 0:00:31]}  Rxc5 {[%clk 0:00:12]} 47. Bxc5 {[%clk 0:00:30]}  Qxc5 {[%clk 0:00:13]} 48. Rf1 {[%clk 0:00:23]}  Qxc7 {[%clk 0:00:11]} 49. Rf5 {[%clk 0:00:18]}  Qg3+ {[%clk 0:00:09]} 50. Kg5 {[%clk 0:00:17]}  Qxh3 {[%clk 0:00:08]} 51. Rf4 {[%clk 0:00:12]}  Rxg4+ {[%clk 0:00:08]} 52. Rxg4 {[%clk 0:00:11]}  Qxg4+ {[%clk 0:00:09]} 53. Kxg4 {[%clk 0:00:11]}  a4 {[%clk 0:00:10]} 0-1


[Site "https://www.chess.com"]

[Event "Titled Tuesday Blitz April 05 Late 2022"]
[White "Delaney, Killian"]
[Black "Kohler, Aran"]
[WhiteFideId "2501570"]
[BlackFideId "1002856"]
[WhiteElo "2598"]
[BlackElo "2305"]
[Result "1-0"]
[Round "02"]
[TimeControl "180+1"]
[Date "2022.04.06"]
[WhiteClock "0:01:02"]
[BlackClock "0:00:05"]

1. e4 {[%clk 0:03:00]}  c6 {[%clk 0:02:57]} 2. d4 {[%clk 0:03:00]}  d5 {[%clk 0:02:58]} 3. exd5 {[%clk 0:03:00]}  cxd5 {[%clk 0:02:57]} 4. c4 {[%clk 0:03:01]}  Nf6 {[%clk 0:02:55]} 5. Nc3 {[%clk 0:03:02]}  Nc6 {[%clk 0:02:53]} 6. Nf3 {[%clk 0:03:02]}  Bg4 {[%clk 0:02:47]} 7. cxd5 {[%clk 0:03:00]}  Nxd5 {[%clk 0:02:43]} 8. Qb3 {[%clk 0:03:00]}  Nxc3 {[%clk 0:02:15]} 9. bxc3 {[%clk 0:02:49]}  Bd7 {[%clk 0:01:54]} 10. Qxb7 {[%clk 0:02:38]}  Rb8 {[%clk 0:01:53]} 11. Qa6 {[%clk 0:02:38]}  e6 {[%clk 0:01:50]} 12. Bf4 {[%clk 0:02:28]}  Rb6 {[%clk 0:01:45]} 13. Qd3 {[%clk 0:02:28]}  Be7 {[%clk 0:01:40]} 14. Be2 {[%clk 0:02:28]}  O-O {[%clk 0:01:36]} 15. O-O {[%clk 0:02:28]}  Na5 {[%clk 0:01:07]} 16. Rab1 {[%clk 0:02:27]}  h6 {[%clk 0:00:55]} 17. c4 {[%clk 0:02:24]}  Qc8 {[%clk 0:00:36]} 18. c5 {[%clk 0:02:20]}  Rxb1 {[%clk 0:00:32]} 19. Rxb1 {[%clk 0:02:21]}  Nc6 {[%clk 0:00:25]} 20. Qa3 {[%clk 0:02:05]}  f6 {[%clk 0:00:17]} 21. Ba6 {[%clk 0:02:00]}  Qe8 {[%clk 0:00:16]} 22. h3 {[%clk 0:01:39]}  Kh8 {[%clk 0:00:15]} 23. Bd3 {[%clk 0:01:22]}  Nxd4 {[%clk 0:00:14]} 24. Nxd4 {[%clk 0:01:21]}  e5 {[%clk 0:00:15]} 25. Ne2 {[%clk 0:01:13]}  exf4 {[%clk 0:00:15]} 26. Nxf4 {[%clk 0:01:14]}  Kg8 {[%clk 0:00:12]} 27. Qb3+ {[%clk 0:01:11]}  Rf7 {[%clk 0:00:08]} 28. Bg6 {[%clk 0:01:10]}  Bc6 {[%clk 0:00:08]} 29. Qe6 {[%clk 0:01:05]}  Bxc5 {[%clk 0:00:06]} 30. Bxf7+ {[%clk 0:01:04]}  Qxf7 {[%clk 0:00:05]} 31. Qxc6 {[%clk 0:01:05]}  Bxf2+ {[%clk 0:00:04]} 32. Kh1 {[%clk 0:01:03]}  Qxa2 {[%clk 0:00:05]} 33. Qd5+ {[%clk 0:01:02]} 1-0


[Site "https://www.chess.com"]

[Event "Titled Tuesday Blitz April 05 Late 2022"]
[White "Diaz Perez, Michel Alejandro"]
[Black "Martinez Alcantara, Jose Eduardo"]
[WhiteFideId "3517179"]
[BlackFideId "3805662"]
[WhiteElo "2313"]
[BlackElo "2690"]
[Result "0-1"]
[Round "02"]
[TimeControl "180+1"]
[Date "2022.04.05"]
[WhiteClock "0:00:33"]
[BlackClock "0:01:16"]

1. d4 {[%clk 0:03:00]}  Nf6 {[%clk 0:02:56]} 2. c4 {[%clk 0:02:59]}  e6 {[%clk 0:02:56]} 3. Nf3 {[%clk 0:02:59]}  Bb4+ {[%clk 0:02:57]} 4. Nbd2 {[%clk 0:02:59]}  b6 {[%clk 0:02:57]} 5. a3 {[%clk 0:02:58]}  Bxd2+ {[%clk 0:02:58]} 6. Qxd2 {[%clk 0:02:57]}  Bb7 {[%clk 0:02:59]} 7. e3 {[%clk 0:02:57]}  d5 {[%clk 0:03:00]} 8. b3 {[%clk 0:02:55]}  O-O {[%clk 0:03:00]} 9. Be2 {[%clk 0:02:54]}  dxc4 {[%clk 0:03:00]} 10. bxc4 {[%clk 0:02:53]}  c5 {[%clk 0:03:01]} 11. O-O {[%clk 0:02:53]}  Nc6 {[%clk 0:03:01]} 12. Bb2 {[%clk 0:02:53]}  Qe7 {[%clk 0:02:59]} 13. Rfd1 {[%clk 0:02:50]}  Rfd8 {[%clk 0:02:59]} 14. Qc2 {[%clk 0:02:50]}  Rac8 {[%clk 0:02:59]} 15. Qa4 {[%clk 0:02:20]}  cxd4 {[%clk 0:02:36]} 16. exd4 {[%clk 0:02:18]}  Na5 {[%clk 0:02:30]} 17. Ne5 {[%clk 0:02:17]}  Nd7 {[%clk 0:02:24]} 18. Nf3 {[%clk 0:01:58]}  Nf6 {[%clk 0:02:20]} 19. Ne5 {[%clk 0:01:51]}  Nd7 {[%clk 0:02:20]} 20. Nf3 {[%clk 0:01:51]}  Bc6 {[%clk 0:02:18]} 21. Qc2 {[%clk 0:01:49]}  Bxf3 {[%clk 0:02:06]} 22. Bxf3 {[%clk 0:01:46]}  Nxc4 {[%clk 0:02:01]} 23. Bc3 {[%clk 0:01:43]}  Nf6 {[%clk 0:02:00]} 24. Qb3 {[%clk 0:01:41]}  Nd5 {[%clk 0:01:58]} 25. Be1 {[%clk 0:01:34]}  Rc7 {[%clk 0:01:56]} 26. Rac1 {[%clk 0:01:29]}  Rdc8 {[%clk 0:01:55]} 27. a4 {[%clk 0:01:22]}  h6 {[%clk 0:01:48]} 28. g3 {[%clk 0:01:20]}  Ne5 {[%clk 0:01:36]} 29. Rxc7 {[%clk 0:01:09]}  Nxf3+ {[%clk 0:01:36]} 30. Qxf3 {[%clk 0:01:09]}  Qxc7 {[%clk 0:01:36]} 31. a5 {[%clk 0:01:02]}  b5 {[%clk 0:01:31]} 32. Bd2 {[%clk 0:00:57]}  Qd7 {[%clk 0:01:32]} 33. Qg4 {[%clk 0:00:54]}  Nf6 {[%clk 0:01:26]} 34. Qh4 {[%clk 0:00:54]}  Nd5 {[%clk 0:01:22]} 35. Qg4 {[%clk 0:00:51]}  Kh8 {[%clk 0:01:21]} 36. h4 {[%clk 0:00:50]}  a6 {[%clk 0:01:19]} 37. h5 {[%clk 0:00:43]}  Nf6 {[%clk 0:01:18]} 38. Qf3 {[%clk 0:00:43]}  Qd5 {[%clk 0:01:18]} 39. Qf4 {[%clk 0:00:34]}  Qxh5 {[%clk 0:01:16]} 40. d5 {[%clk 0:00:33]}  Qxd1+ {[%clk 0:01:16]} 0-1


[Site "https://www.chess.com"]

[Event "Titled Tuesday Blitz April 05 Late 2022"]
[White "Dobre, Claudiu-Cristian"]
[Black "Fajdetic, Hrvoje"]
[WhiteFideId "1211854"]
[BlackFideId "14501945"]
[WhiteElo "2207"]
[BlackElo "2172"]
[Result "1-0"]
[Round "02"]
[TimeControl "180+1"]
[Date "2022.04.06"]
[WhiteClock "0:00:14"]
[BlackClock "0:00:10"]

1. c4 {[%clk 0:03:00]}  f5 {[%clk 0:02:54]} 2. Nf3 {[%clk 0:03:00]}  Nf6 {[%clk 0:02:54]} 3. g3 {[%clk 0:02:59]}  d6 {[%clk 0:02:55]} 4. Bg2 {[%clk 0:02:58]}  e5 {[%clk 0:02:55]} 5. d3 {[%clk 0:02:59]}  Be7 {[%clk 0:02:55]} 6. O-O {[%clk 0:02:59]}  O-O {[%clk 0:02:55]} 7. Nc3 {[%clk 0:02:58]}  c6 {[%clk 0:02:54]} 8. Rb1 {[%clk 0:02:44]}  a5 {[%clk 0:02:53]} 9. a3 {[%clk 0:02:43]}  Qe8 {[%clk 0:02:52]} 10. b4 {[%clk 0:02:31]}  axb4 {[%clk 0:02:53]} 11. axb4 {[%clk 0:02:31]}  Qh5 {[%clk 0:02:53]} 12. b5 {[%clk 0:02:30]}  Nbd7 {[%clk 0:02:51]} 13. e3 {[%clk 0:02:27]}  Nc5 {[%clk 0:02:44]} 14. d4 {[%clk 0:02:26]}  exd4 {[%clk 0:02:41]} 15. Nxd4 {[%clk 0:02:25]}  Qe8 {[%clk 0:02:26]} 16. bxc6 {[%clk 0:02:24]}  Nfe4 {[%clk 0:02:23]} 17. Nd5 {[%clk 0:02:14]}  bxc6 {[%clk 0:02:21]} 18. Nxc6 {[%clk 0:02:12]}  Bg5 {[%clk 0:02:00]} 19. Nd4 {[%clk 0:01:37]}  Ra2 {[%clk 0:01:44]} 20. Rb2 {[%clk 0:01:35]}  Ra1 {[%clk 0:01:30]} 21. Qc2 {[%clk 0:01:35]}  Bb7 {[%clk 0:01:20]} 22. f3 {[%clk 0:01:22]}  Bxd5 {[%clk 0:01:05]} 23. cxd5 {[%clk 0:01:20]}  Rxc1 {[%clk 0:00:50]} 24. Rxc1 {[%clk 0:00:36]}  Bxe3+ {[%clk 0:00:49]} 25. Kf1 {[%clk 0:00:23]}  Nd2+ {[%clk 0:00:20]} 26. Qxd2 {[%clk 0:00:17]}  Bxd2 {[%clk 0:00:19]} 27. Rxd2 {[%clk 0:00:18]}  f4 {[%clk 0:00:18]} 28. g4 {[%clk 0:00:17]}  Qe3 {[%clk 0:00:18]} 29. Rcd1 {[%clk 0:00:17]}  Re8 {[%clk 0:00:15]} 30. Re2 {[%clk 0:00:17]}  Nd3 {[%clk 0:00:12]} 31. Rxe3 {[%clk 0:00:17]}  Rxe3 {[%clk 0:00:12]} 32. Ne2 {[%clk 0:00:17]}  g6 {[%clk 0:00:11]} 33. Nc1 {[%clk 0:00:15]}  Nb4 {[%clk 0:00:10]} 34. Rd2 {[%clk 0:00:15]}  g5 {[%clk 0:00:10]} 35. Na2 {[%clk 0:00:15]}  Na6 {[%clk 0:00:09]} 36. Re2 {[%clk 0:00:15]}  Nc5 {[%clk 0:00:09]} 37. Rxe3 {[%clk 0:00:14]}  fxe3 {[%clk 0:00:10]} 38. Ke2 {[%clk 0:00:15]}  Kf7 {[%clk 0:00:11]} 39. Kxe3 {[%clk 0:00:15]}  Kf6 {[%clk 0:00:12]} 40. Kd4 {[%clk 0:00:15]}  Nb3+ {[%clk 0:00:11]} 41. Ke4 {[%clk 0:00:15]}  Nc5+ {[%clk 0:00:11]} 42. Kd4 {[%clk 0:00:15]}  Nb3+ {[%clk 0:00:11]} 43. Kc3 {[%clk 0:00:15]}  Nc5 {[%clk 0:00:11]} 44. Nc1 {[%clk 0:00:15]}  Ke5 {[%clk 0:00:10]} 45. Nd3+ {[%clk 0:00:16]}  Nxd3 {[%clk 0:00:10]} 46. Kxd3 {[%clk 0:00:16]}  Kxd5 {[%clk 0:00:11]} 47. f4+ {[%clk 0:00:15]}  Ke6 {[%clk 0:00:11]} 48. f5+ {[%clk 0:00:16]}  Ke5 {[%clk 0:00:11]} 49. Bc6 {[%clk 0:00:16]}  h5 {[%clk 0:00:12]} 50. h3 {[%clk 0:00:14]}  hxg4 {[%clk 0:00:11]} 51. hxg4 {[%clk 0:00:14]}  d5 {[%clk 0:00:12]} 52. Ke3 {[%clk 0:00:14]}  d4+ {[%clk 0:00:11]} 53. Kd3 {[%clk 0:00:14]}  Kf4 {[%clk 0:00:11]} 54. Kxd4 {[%clk 0:00:13]}  Kxg4 {[%clk 0:00:11]} 55. f6 {[%clk 0:00:14]}  Kf5 {[%clk 0:00:12]} 56. f7 {[%clk 0:00:15]}  g4 {[%clk 0:00:10]} 57. f8=Q+ {[%clk 0:00:14]} 1-0


[Site "https://www.chess.com"]

[Event "Titled Tuesday Blitz April 05 Late 2022"]
[White "Ezat, Mohamed"]
[Black "Kamsky, Gata"]
[WhiteFideId "10600906"]
[BlackFideId "2000024"]
[WhiteElo "2386"]
[BlackElo "2645"]
[Result "1/2-1/2"]
[Round "02"]
[TimeControl "180+1"]
[Date "2022.04.05"]
[WhiteClock "0:00:25"]
[BlackClock "0:00:36"]

1. d4 {[%clk 0:02:59]}  f5 {[%clk 0:02:57]} 2. Nc3 {[%clk 0:02:57]}  Nf6 {[%clk 0:02:56]} 3. Bg5 {[%clk 0:02:57]}  d5 {[%clk 0:02:56]} 4. Bxf6 {[%clk 0:02:56]}  exf6 {[%clk 0:02:56]} 5. e3 {[%clk 0:02:57]}  Be6 {[%clk 0:02:55]} 6. Bd3 {[%clk 0:02:57]}  Nc6 {[%clk 0:02:53]} 7. a3 {[%clk 0:02:55]}  Qd7 {[%clk 0:02:53]} 8. Qf3 {[%clk 0:02:55]}  Ne7 {[%clk 0:02:48]} 9. Nge2 {[%clk 0:02:54]}  g5 {[%clk 0:02:44]} 10. h3 {[%clk 0:02:51]}  O-O-O {[%clk 0:02:37]} 11. g4 {[%clk 0:02:46]}  Bg7 {[%clk 0:02:25]} 12. gxf5 {[%clk 0:02:25]}  Nxf5 {[%clk 0:02:21]} 13. O-O-O {[%clk 0:02:14]}  Nh4 {[%clk 0:02:21]} 14. Qg3 {[%clk 0:02:14]}  h6 {[%clk 0:02:19]} 15. Kb1 {[%clk 0:02:09]}  Kb8 {[%clk 0:02:15]} 16. e4 {[%clk 0:02:07]}  f5 {[%clk 0:02:04]} 17. exd5 {[%clk 0:02:03]}  Bxd5 {[%clk 0:02:03]} 18. Nxd5 {[%clk 0:02:02]}  Qxd5 {[%clk 0:02:03]} 19. Nc3 {[%clk 0:02:02]}  Qxd4 {[%clk 0:01:54]} 20. Bxf5 {[%clk 0:01:38]}  Qc5 {[%clk 0:01:53]} 21. Bg4 {[%clk 0:01:31]}  Bxc3 {[%clk 0:01:52]} 22. Qxc3 {[%clk 0:01:31]}  Qxc3 {[%clk 0:01:51]} 23. bxc3 {[%clk 0:01:32]}  c6 {[%clk 0:01:48]} 24. Rhe1 {[%clk 0:01:31]}  Rxd1+ {[%clk 0:01:45]} 25. Rxd1 {[%clk 0:01:29]}  Ng6 {[%clk 0:01:38]} 26. Rd6 {[%clk 0:01:26]}  Nf4 {[%clk 0:01:37]} 27. c4 {[%clk 0:01:21]}  a5 {[%clk 0:01:35]} 28. Rf6 {[%clk 0:01:14]}  h5 {[%clk 0:01:33]} 29. Bf5 {[%clk 0:01:10]}  Re8 {[%clk 0:01:32]} 30. Kb2 {[%clk 0:01:00]}  Re2 {[%clk 0:01:29]} 31. Rf8+ {[%clk 0:01:00]}  Ka7 {[%clk 0:01:29]} 32. Rg8 {[%clk 0:01:01]}  Re5 {[%clk 0:01:08]} 33. Bc8 {[%clk 0:01:00]}  Kb8 {[%clk 0:01:01]} 34. Bf5+ {[%clk 0:00:44]}  Kc7 {[%clk 0:01:01]} 35. Rg7+ {[%clk 0:00:44]}  Kd6 {[%clk 0:00:59]} 36. Bc8 {[%clk 0:00:40]}  b6 {[%clk 0:00:58]} 37. a4 {[%clk 0:00:39]}  Kc5 {[%clk 0:00:57]} 38. Kb3 {[%clk 0:00:38]}  h4 {[%clk 0:00:56]} 39. Rg8 {[%clk 0:00:37]}  Ne2 {[%clk 0:00:55]} 40. c3 {[%clk 0:00:35]}  Nf4 {[%clk 0:00:53]} 41. Bg4 {[%clk 0:00:33]}  Nd3 {[%clk 0:00:52]} 42. f3 {[%clk 0:00:32]}  Nf2 {[%clk 0:00:48]} 43. Rg7 {[%clk 0:00:30]}  Nd3 {[%clk 0:00:47]} 44. Rg6 {[%clk 0:00:30]}  Nf4 {[%clk 0:00:46]} 45. Rg7 {[%clk 0:00:26]}  Kd6 {[%clk 0:00:44]} 46. Rd7+ {[%clk 0:00:25]}  Kc5 {[%clk 0:00:44]} 47. Rg7 {[%clk 0:00:26]}  Nd3 {[%clk 0:00:39]} 48. Rg6 {[%clk 0:00:25]}  Nf4 {[%clk 0:00:36]} 49. Rg7 {[%clk 0:00:25]} 1/2-1/2


[Site "https://www.chess.com"]

[Event "Titled Tuesday Blitz April 05 Late 2022"]
[White "Federzoni, Enzo"]
[Black "Tarigan, Gilbert Elroy"]
[WhiteFideId "2173301"]
[BlackFideId "7108133"]
[WhiteElo "2398"]
[BlackElo "2695"]
[Result "0-1"]
[Round "02"]
[TimeControl "180+1"]
[Date "2022.04.06"]
[WhiteClock "0:00:52"]
[BlackClock "0:00:58"]

1. e4 {[%clk 0:03:00]}  e5 {[%clk 0:02:59]} 2. Nf3 {[%clk 0:03:00]}  Nc6 {[%clk 0:03:00]} 3. d4 {[%clk 0:03:00]}  exd4 {[%clk 0:02:58]} 4. Nxd4 {[%clk 0:03:01]}  Bb4+ {[%clk 0:02:58]} 5. c3 {[%clk 0:03:00]}  Bc5 {[%clk 0:02:59]} 6. Be3 {[%clk 0:03:00]}  Bb6 {[%clk 0:02:58]} 7. Nf5 {[%clk 0:02:48]}  g6 {[%clk 0:02:54]} 8. Bxb6 {[%clk 0:02:47]}  axb6 {[%clk 0:02:55]} 9. Ne3 {[%clk 0:02:45]}  Nf6 {[%clk 0:02:55]} 10. f3 {[%clk 0:02:45]}  O-O {[%clk 0:02:36]} 11. c4 {[%clk 0:02:40]}  d6 {[%clk 0:02:04]} 12. Be2 {[%clk 0:02:21]}  Nh5 {[%clk 0:02:00]} 13. O-O {[%clk 0:02:01]}  Nf4 {[%clk 0:01:52]} 14. g3 {[%clk 0:01:58]}  Qg5 {[%clk 0:01:46]} 15. Nd5 {[%clk 0:01:57]}  Nxd5 {[%clk 0:01:43]} 16. cxd5 {[%clk 0:01:46]}  Qe3+ {[%clk 0:01:37]} 17. Kg2 {[%clk 0:01:45]}  Nd4 {[%clk 0:01:31]} 18. Nc3 {[%clk 0:01:45]}  c5 {[%clk 0:01:31]} 19. Qd3 {[%clk 0:01:29]}  Qh6 {[%clk 0:01:28]} 20. Kg1 {[%clk 0:01:23]}  Bd7 {[%clk 0:01:21]} 21. f4 {[%clk 0:01:20]}  b5 {[%clk 0:01:10]} 22. Bf3 {[%clk 0:01:10]}  b4 {[%clk 0:01:10]} 23. Ne2 {[%clk 0:01:09]}  Bb5 {[%clk 0:01:09]} 24. Qd2 {[%clk 0:01:02]}  Nxf3+ {[%clk 0:01:04]} 25. Rxf3 {[%clk 0:01:02]}  Rfe8 {[%clk 0:01:05]} 26. Re3 {[%clk 0:00:57]}  Re7 {[%clk 0:00:59]} 27. Ra3 {[%clk 0:00:52]}  bxa3 {[%clk 0:00:58]} 0-1


[Site "https://www.chess.com"]

[Event "Titled Tuesday Blitz April 05 Late 2022"]
[White "Fedoseev, Vladimir"]
[Black "Hasangatin, Ramil"]
[WhiteFideId "24130737"]
[BlackFideId "4122160"]
[WhiteElo "2726"]
[BlackElo "2375"]
[Result "1-0"]
[Round "02"]
[TimeControl "180+1"]
[Date "2022.04.05"]
[WhiteClock "0:00:30"]
[BlackClock "0:00:06"]

1. Nf3 {[%clk 0:02:59]}  d5 {[%clk 0:02:57]} 2. g3 {[%clk 0:02:59]}  Nc6 {[%clk 0:02:57]} 3. d4 {[%clk 0:02:59]}  Bf5 {[%clk 0:02:57]} 4. c3 {[%clk 0:02:58]}  e6 {[%clk 0:02:57]} 5. Nh4 {[%clk 0:02:52]}  Be4 {[%clk 0:02:56]} 6. f3 {[%clk 0:02:50]}  Bxb1 {[%clk 0:02:53]} 7. Rxb1 {[%clk 0:02:50]}  Be7 {[%clk 0:02:54]} 8. Ng2 {[%clk 0:02:50]}  Nf6 {[%clk 0:02:51]} 9. Ne3 {[%clk 0:02:40]}  O-O {[%clk 0:02:49]} 10. Bh3 {[%clk 0:02:39]}  Re8 {[%clk 0:02:48]} 11. O-O {[%clk 0:02:33]}  e5 {[%clk 0:02:48]} 12. Nf5 {[%clk 0:02:32]}  Bf8 {[%clk 0:02:48]} 13. e3 {[%clk 0:02:13]}  g6 {[%clk 0:02:39]} 14. Nh4 {[%clk 0:02:12]}  Bg7 {[%clk 0:02:39]} 15. b3 {[%clk 0:02:09]}  Qd6 {[%clk 0:02:36]} 16. Bd2 {[%clk 0:02:01]}  Rad8 {[%clk 0:02:36]} 17. Qc2 {[%clk 0:01:55]}  Re7 {[%clk 0:02:11]} 18. Rfe1 {[%clk 0:01:55]}  Rde8 {[%clk 0:02:11]} 19. Bf1 {[%clk 0:01:55]}  a6 {[%clk 0:02:10]} 20. a4 {[%clk 0:01:48]}  Bh6 {[%clk 0:02:06]} 21. Ng2 {[%clk 0:01:46]}  Nb8 {[%clk 0:01:52]} 22. Red1 {[%clk 0:01:27]}  Nbd7 {[%clk 0:01:52]} 23. Be1 {[%clk 0:01:28]}  c5 {[%clk 0:01:34]} 24. dxc5 {[%clk 0:01:22]}  Qxc5 {[%clk 0:01:30]} 25. Bf2 {[%clk 0:01:20]}  Qc6 {[%clk 0:01:27]} 26. c4 {[%clk 0:01:17]}  dxc4 {[%clk 0:01:11]} 27. e4 {[%clk 0:01:17]}  c3 {[%clk 0:00:57]} 28. Ne3 {[%clk 0:01:05]}  Nf8 {[%clk 0:00:50]} 29. Rd3 {[%clk 0:00:51]}  Rc7 {[%clk 0:00:43]} 30. Rbd1 {[%clk 0:00:48]}  Rd7 {[%clk 0:00:18]} 31. Rxc3 {[%clk 0:00:45]}  Qe6 {[%clk 0:00:17]} 32. Rxd7 {[%clk 0:00:36]}  N8xd7 {[%clk 0:00:14]} 33. Rc7 {[%clk 0:00:37]}  Rb8 {[%clk 0:00:09]} 34. Bc4 {[%clk 0:00:35]}  Qe8 {[%clk 0:00:09]} 35. Nd5 {[%clk 0:00:34]}  Nxd5 {[%clk 0:00:09]} 36. Bxd5 {[%clk 0:00:33]}  b5 {[%clk 0:00:07]} 37. Qc6 {[%clk 0:00:32]}  Nf8 {[%clk 0:00:06]} 38. Qxe8 {[%clk 0:00:30]} 1-0


[Site "https://www.chess.com"]